[Event "75th Argentine Women-ch 2024"]
[Site "Buenos Aires"]
[Date "2024.11.22"]
[Round "2.9"]
[White "Macuri, Genesis"]
[Black "Palomares, Lujan"]
[Result "0-1"]
[ECO "D02"]
[WhiteElo "1449"]
[BlackElo "1633"]
[Annotator "NA RC"]
[PlyCount "90"]
[EventDate "2024.11.21"]
[EventType "swiss"]
[EventCountry "ARG"]
[SourceTitle "playchess.com"]
[Source "ChessBase"]
[SourceQuality "1"]
[TimeControl "5400+30"]

1. d4 {[%emt 0:00:02]} c6 {[%emt 0:00:14]} 2. Nf3 {[%emt 0:00:10]} d5 {[%emt 0:00:18]} 3. g3 {[%emt 0:00:08]} Nf6 {[%emt 0:01:06]} 4. Bg2 {[%emt 0:00:11]} Bg4 {[%emt 0:01:32]} 5. Nbd2 {[%emt 0:00:15]} Nbd7 {[%emt 0:01:46]} 6. O-O {[%emt 0:00:12]} e6 {[%emt 0:03:10]} 7. b3 {[%emt 0:01:06]} Bd6 {[%emt 0:01:38]} 8. Bb2 {[%emt 0:03:55]} Qc7 {[%emt 0:03:57]} 9. Ne5 {[%emt 0:04:41]} Nxe5 {[%emt 0:06:00]} 10. dxe5 {[%emt 0:00:34]} Bxe5 {[%emt 0:00:25]} 11. Bxe5 {[%emt 0:00:20]} Qxe5 {[%emt 0:00:13]} 12. Nf3 {[%emt 0:00:59]} Qc3 {[%emt 0:11:51]} 13. e3 {[%emt 0:08:48]} O-O {[%emt 0:06:57]} 14. Qd2 {[%emt 0:05:06]} Qxd2 {[%emt 0:08:14]} 15. Nxd2 {[%emt 0:04:24]} Bf5 {[%emt 0:00:19]} 16. c4 {[%emt 0:00:41]} Rad8 {[%emt 0:01:53]} 17. cxd5 {[%emt 0:00:56]} exd5 {[%emt 0:00:32]} 18. a4 {[%emt 0:03:00]} Rfe8 {[%emt 0:00:54]} 19. h4 {[%emt 0:04:57]} Ne4 {[%emt 0:03:09]} 20. Nxe4 {[%emt 0:00:54]} Bxe4 {[%emt 0:00:13]} 21. Bxe4 {[%emt 0:01:22]} dxe4 {[%emt 0:01:19]} 22. f4 {[%emt 0:01:16]} Rd3 {[%emt 0:01:19]} 23. Kf2 {[%emt 0:06:57]} Red8 {[%emt 0:09:53]} 24. b4 {[%emt 0:02:33]} Rd2+ {[%emt 0:04:32]} 25. Kg1 {[%emt 0:00:25]} f5 {[%emt 0:04:19]} 26. b5 {[%emt 0:00:47]} c5 {[%emt 0:02:49]} 27. Rac1 {[%emt 0:04:06]} b6 {[%emt 0:00:58]} 28. Rf2 {[%emt 0:06:34]} Kf7 {[%emt 0:02:39]} 29. Rxd2 {[%emt 0:00:34]} Rxd2 {[%emt 0:00:11]} 30. h5 {[%emt 0:03:15]} Ra2 {[%emt 0:01:20]} 31. Rc4 {[%emt 0:00:33]} Ke6 {[%emt 0:00:19]} 32. Kh1 {[%emt 0:07:10]} Kd5 {[%emt 0:00:42]} 33. Rc1 {[%emt 0:00:19]} Rd2 {[%emt 0:06:22]} 34. Rg1 {[%emt 0:01:03]} c4 {[%emt 0:03:54]} 35. g4 {[%emt 0:01:00]} c3 {[%emt 0:00:32]} 36. h6 {[%emt 0:00:27]} gxh6 {[%emt 0:01:02]} 37. gxf5 {[%emt 0:00:19]} c2 {[%emt 0:00:06]} 38. f6 {[%emt 0:00:28]} Rd1 {[%emt 0:01:23]} 39. f7 {[%emt 0:01:23]} Rxg1+ {[%emt 0:00:10]} 40. Kxg1 {[%emt 0:00:16]} c1=Q+ {[%emt 0:00:11]} 41. Kg2 {[%emt 0:03:01]} Qc8 {[%emt 0:00:10]} 42. Kg3 {[%emt 0:00:19]} Qf8 {[%emt 0:00:07]} 43. Kg4 {[%emt 0:00:08]} Qxf7 {[%emt 0:00:09]} 44. f5 {[%emt 0:00:24]} Qg7+ {[%emt 0:00:16]} 45. Kf4 {[%emt 0:00:08]} Qg5# {[%emt 0:13:57]} 0-1

[Event "75th Argentine Women-ch 2024"]
[Site "Buenos Aires"]
[Date "2024.11.22"]
[Round "2.10"]
[White "Perez Lascano, Lucila"]
[Black "Perez Mosqueda, Valeria Ritzabeth"]
[Result "1-0"]
[ECO "C06"]
[WhiteElo "1593"]
[BlackElo "1476"]
[Annotator "NA RC"]
[PlyCount "87"]
[EventDate "2024.11.21"]
[EventType "swiss"]
[EventCountry "ARG"]
[SourceTitle "playchess.com"]
[Source "ChessBase"]
[SourceQuality "1"]
[TimeControl "5400+30"]

1. e4 {[%emt 0:00:03]} e6 {[%emt 0:00:14]} 2. d4 {[%emt 0:00:10]} d5 {[%emt 0:00:06]} 3. Nd2 {[%emt 0:00:09]} Nf6 {[%emt 0:00:16]} 4. e5 {[%emt 0:00:07]} Nfd7 {[%emt 0:00:09]} 5. Bd3 {[%emt 0:00:14]} c5 {[%emt 0:00:14]} 6. c3 {[%emt 0:00:18]} Nc6 {[%emt 0:00:35]} 7. Ngf3 {[%emt 0:00:21]} Qb6 {[%emt 0:00:25]} 8. O-O {[%emt 0:00:17]} Be7 {[%emt 0:00:12]} 9. Qa4 {[%emt 0:06:06]} O-O {[%emt 0:02:00]} 10. Bb5 {[%emt 0:07:47]} a6 {[%emt 0:03:45]} 11. Bd3 {[%emt 0:04:16]} h6 {[%emt 0:06:04]} 12. Re1 {[%emt 0:01:08]} Rd8 {[%emt 0:05:27]} 13. Nf1 {[%emt 0:00:58]} Nf8 {[%emt 0:01:12]} 14. Qc2 {[%emt 0:05:32]} cxd4 {[%emt 0:04:17]} 15. cxd4 {[%emt 0:05:53]} Nd7 {[%emt 0:04:14]} 16. Be3 {[%emt 0:04:03]} Nb4 {[%emt 0:01:24]} 17. Bh7+ {[%emt 0:03:28]} Kh8 {[%emt 0:00:38]} 18. Qb1 {[%emt 0:00:23]} Nf8 {[%emt 0:00:48]} 19. Bd3 {[%emt 0:02:45]} Nxd3 {[%emt 0:00:22]} 20. Qxd3 {[%emt 0:00:10]} Ng6 {[%emt 0:03:30]} 21. Qd2 {[%emt 0:01:25]} Bb4 {[%emt 0:00:39]} 22. Qc2 {[%emt 0:05:02]} Bxe1 {[%emt 0:00:44]} 23. Rxe1 {[%emt 0:00:16]} Kg8 {[%emt 0:00:50]} 24. Ng3 {[%emt 0:00:57]} Qc6 {[%emt 0:00:29]} 25. Qd2 {[%emt 0:01:49]} Qe8 {[%emt 0:07:59]} 26. Nh5 {[%emt 0:05:32]} Qf8 {[%emt 0:08:32]} 27. Nxg7 {[%emt 0:11:48]} Qxg7 {[%emt 0:03:41]} 28. Bxh6 {[%emt 0:00:13]} Qh7 {[%emt 0:01:43]} 29. Qg5 {[%emt 0:00:20]} Bd7 {[%emt 0:02:17]} 30. h4 {[%emt 0:01:37]} Kh8 {[%emt 0:10:06]} 31. Qf6+ {[%emt 0:00:39]} Kg8 {[%emt 0:00:35]} 32. Qg5 {[%emt 0:00:41]} Kh8 {[%emt 0:00:38]} 33. h5 {[%emt 0:05:01]} Re8 {[%emt 0:04:48]} 34. Qf6+ {[%emt 0:19:28]} Kg8 {[%emt 0:00:30]} 35. hxg6 {[%emt 0:02:02]} Qxg6 {[%emt 0:01:05]} 36. Qxg6+ {[%emt 0:02:56]} fxg6 {[%emt 0:00:09]} 37. Ng5 {[%emt 0:00:09]} Rac8 {[%emt 0:01:04]} 38. Rd1 {[%emt 0:00:40]} Rc2 {[%emt 0:00:36]} 39. Rd3 {[%emt 0:01:09]} Rxb2 {[%emt 0:00:42]} 40. Rf3 {[%emt 0:01:07]} Kh8 {[%emt 0:04:16]} 41. Rf7 {[%emt 0:00:27]} Bb5 {[%emt 0:03:15]} 42. Rh7+ {[%emt 0:00:18]} Kg8 {[%emt 0:00:08]} 43. Rg7+ {[%emt 0:00:10]} Kf8 {[%emt 0:00:21]} 44. Nh7# {[%emt 0:00:13]} 1-0